Cogmind - Beta 13 @@@ ROGUE MODE // 2024.05.01 @ 15:31:24 Player: e.v.o Result: Destroyed by D-53 Grenadier with Mini Grenade Launcher Performance ------------- Evolutions (0) 0 Regions Visited (2) 400 Robots Destroyed (12) 60 Value Destroyed (357) 357 Prototype IDs (0) 0 Alien Tech Used (0) 0 Bonus (0) 0 TOTAL SCORE: 817 Bonus ------- None Cogmind --------- Core Integrity 0/250 Matter 300/300 Energy 250/250 System Corruption 0% Temperature Cool (0) Movement Core (200) Ox3 Location -10/Mines Parts ------- > --- POWER (1) -------- Ion Engine > --- PROPULSION (2) --- (None) > --- UTILITY (2) ------ Improved Heat Sink Small Storage Unit > --- WEAPON (2) ------- (None) > --- INVENTORY (8) ---- Ion Engine Ion Engine Aluminum Leg Aluminum Leg Improved Heat Sink High-capacity Matter Pod (152) Hacking Suite Light Assault Rifle Peak State ------------ > --- POWER ------------ Ion Engine > --- PROPULSION ------- Aluminum Leg Aluminum Leg > --- UTILITY ---------- Improved Heat Sink Small Storage Unit > --- WEAPON ----------- Particle Gun Assault Rifle > --- INVENTORY -------- Ion Engine Ion Engine Aluminum Leg Aluminum Leg Improved Heat Sink High-capacity Matter Pod Hacking Suite Light Assault Rifle [Rating: 11] Favorites ----------- Power Ion Engine Engine Ion Engine Propulsion Aluminum Leg Leg Aluminum Leg Utility Small Storage Unit Device Improved Heat Sink Storage Small Storage Unit Weapon Light Assault Rifle Energy Gun Medium Laser Ballistic Gun Light Assault Rifle Build | -11 -10 -10 ------- Run | Yrd Mat Min Slots Evolved . | . . . Power . | . . . Propulsion . | . . . Utility . | . . . Weapon . | . . . Parts Attached 18 | 6 9 3 Power 2 | 1 . 1 Engine 2 | 1 . 1 Core . | . . . Reactor . | . . . Propulsion 7 | 2 4 1 Treads . | . . . Leg 7 | 2 4 1 Wheel . | . . . Hover . | . . . Flight . | . . . Utility 4 | 1 3 . Device 2 | . 2 . Storage 2 | 1 1 . Processor . | . . . Hackware . | . . . Protection . | . . . Artifact . | . . . Weapon 5 | 2 2 1 Energy Gun 2 | 1 . 1 Energy Cannon . | . . . Ballistic Gun 3 | 1 2 . Ballistic Cannon . | . . . Launcher . | . . . Special Weapon . | . . . Impact Weapon . | . . . Slashing Weapon . | . . . Piercing Weapon . | . . . Special Melee Weapon . | . . . Unidentified Prototypes . | . . . Parts Lost 4 | . . 4 Power . | . . . Propulsion 2 | . . 2 Utility . | . . . Weapon 2 | . . 2 Highest Loss Streak 4 | . . 4 To Critical Strikes . | . . . Average Slot Usage (%) 97 | . 98 94 Engine 14 | . 14 14 Leg 27 | . 28 26 Device 7 | . 5 14 Storage 18 | . 21 14 Energy Gun 9 | . 9 8 Ballistic Gun 17 | . 18 17 Naked Turns . | . . . Heaviest Build 17 | 13 17 16 Greatest Support 20 | 20 20 20 Greatest Overweight (x) 4 | 4 . 3 Average Overweight (x) . | . . . Largest Inventory Capacity 8 | 8 8 8 Average Capacity 7 | 7 8 8 Most Carried 8 | 4 8 8 Average Carried 5 | 2 5 7 Final Capacity 8 | 8 8 8 Final Carried 8 | 4 7 8 Class Distribution -------------------- 85% | Mutant 14% | Scavenger-Mutant Dominant Class ---------------- Mutant | -10/Materials Scavenger-Mutant | -10/Mines Resources | -11 -10 -10 ----------- Run | Yrd Mat Min Matter Collected 604 | 221 303 80 Remotely . | . . . Salvage Created 363 | . 283 80 Parts 28 | . 23 5 Haulers Intercepted . | . . . Recyclers Shooed . | . . . Parts Field Recycled . | . . . Retrieved Matter . | . . . Parts Self-Destructed . | . . . Prevented . | . . . Kills | -11 -10 -10 ------- Run | Yrd Mat Min Combat Hostiles Destroyed 11 | . 9 2 Guns 11 | . 9 2 Classes Destroyed 3 | . 3 . Operator 1 | . 1 . Swarmer 3 | . 3 . Grunt 8 | . 6 2 Best Kill Streak 3 | . 3 2 Combat Bots Only 3 | . 3 2 Max Kills in Single Turn 1 | . 1 1 Gunslinging . | . . . Exploded . | . . . Melee . | . . . Uniques/NPCs Destroyed . | . . . Combat | -11 -10 -10 -------- Run | Yrd Mat Min Hostile Shots Fired 62 | . 38 24 Missed 14 | . 9 5 Damage Taken 954 | . 315 639 Core 271 | . 75 196 Absorbed by Shields . | . . . Core Remaining (%) 100 | 100 . . Volleys Fired 39 | . 32 7 Largest 2 | . 2 2 Hottest 70 | . 70 40 Shots Fired 78 | . 64 14 Gun 78 | . 64 14 Cannon . | . . . Launcher . | . . . Special . | . . . Kinetic 50 | . 36 14 Thermal 28 | . 28 . Explosive . | . . . Electromagnetic . | . . . Robot Hit Streak 11 | . 11 8 Robot Miss Streak 3 | . 3 3 Penetration Max . | . . . Secondary Targets 1 | . 1 . Max Gunslinging Chain 1 | . 1 . Shots Hit Robots 52 | . 43 9 Core Hits 27 | . 22 5 Critical Kills . | . . . Critical Parts Destroyed 1 | . 1 . Critical Strikes 2 | . 2 . Burn 1 | . 1 . Destroy 1 | . 1 . Melee Attacks . | . . . Impact . | . . . Slashing . | . . . Piercing . | . . . Sneak Attacks . | . . . Combat Hostiles . | . . . Follow-up Attacks . | . . . Damage Inflicted 581 | . 480 101 Guns 581 | . 480 101 Cannons . | . . . Explosions . | . . . Melee . | . . . Ramming . | . . . Kinetic 331 | . 230 101 Thermal 250 | . 250 . Explosive . | . . . Electromagnetic . | . . . Impact . | . . . Slashing . | . . . Piercing . | . . . Highest Corruption . | . . . Average Corruption . | . . . Corruption Purged . | . . . Corruption Blocked . | . . . Overload Shots . | . . . Overflow Damage . | . . . Projectiles . | . . . Explosions . | . . . Melee . | . . . Knockbacks . | . . . Impact . | . . . Kinetic . | . . . Secondary . | . . . Self-Inflicted Damage . | . . . Shots . | . . . Rammed . | . . . Targets Rammed . | . . . Kicked . | . . . Crushed . | . . . Highest Temperature 142 | . 142 . Average Temperature 63 | . 63 . Received Heat Transfer 168 | . 120 48 Siege Activations . | . . . Robots Corrupted . | . . . Combat Hostiles . | . . . Parts Fried . | . . . Impact Corruptions . | . . . Robots Melted . | . . . Combat Hostiles . | . . . Parts Melted . | . . . Heat Transferred 814 | . 814 . Parts Sabotaged . | . . . Parts Stolen . | . . . Parts Stripped . | . . . Power Chain Reactions . | . . . Alert | -11 -10 -10 ------- Run | Yrd Mat Min Peak Influence 297 | . 297 180 Initial 115 | . . 115 Average 151 | . 170 174 Maximum Alert Level 1 | . 1 . Low Security (%) 67 | 100 48 100 Level 1 32 | . 51 . Level 2 . | . . . Level 3 . | . . . Level 4 . | . . . Level 5 . | . . . High Security . | . . . Max Security . | . . . Squads Dispatched 2 | . 2 . Investigation . | . . . Extermination . | . . . Reinforcement 2 | . 2 . Assault . | . . . Garrison . | . . . Intercept . | . . . Searches Triggered . | . . . Construction Impeded . | . . . Haulers Reinforced . | . . . Active Scanning Responses . | . . . Cargo Convoy Interrupts . | . . . Stealth | -11 -10 -10 --------- Run | Yrd Mat Min Distress Signals 1 | . 1 . Communications Jammed . | . . . Distress Signals . | . . . Times Spotted 18 | . 14 4 Peak Tracking Total 5 | . 5 2 Tactical Retreats 2 | . 2 . Traps | -11 -10 -10 ------- Run | Yrd Mat Min Traps Triggered . | . . . Indirectly . | . . . Trap Hack Attempts . | . . . Triggered . | . . . Disarmed . | . . . Reprogrammed . | . . . Reused . | . . . Traps Extracted . | . . . Installed . | . . . Triggered . | . . . Machines | -11 -10 -10 ---------- Run | Yrd Mat Min Machines Disabled . | . . . Max in Single Turn . | . . . Machines Repaired . | . . . Machines Dismantled . | . . . Machines Sabotaged . | . . . Overloaded Fab Kills . | . . . Hacking | -11 -10 -10 --------- Run | Yrd Mat Min Machines Accessed 2 | . 2 . Terminals 2 | . 2 . Fabricators . | . . . Repair Stations . | . . . Recycling Units . | . . . Scanalyzers . | . . . Garrison Access . | . . . Total Hacks 8 | . 8 . Successful 2 | . 2 . Failed 5 | . 5 . Catastrophic 2 | . 2 . Database Lockouts 1 | . 1 . Manual . | . . . Terminals 8 | . 8 . Fabricators . | . . . Repair Stations . | . . . Recycling Units . | . . . Scanalyzers . | . . . Garrison Access . | . . . Terminal Hacks 2 | . 2 . Record 2 | . 2 . Fabricator Hacks . | . . . Repair Station Hacks . | . . . Recycling Unit Hacks . | . . . Scanalyzer . | . . . Garrison Access Hacks . | . . . Unauthorized Hacks . | . . . Terminals . | . . . Fabricators . | . . . Repair Stations . | . . . Recycling Units . | . . . Scanalyzers . | . . . Garrison Access . | . . . Data Cores Recovered . | . . . Used . | . . . Hacking Detections 2 | . 2 . Full Trace Events . | . . . Feedback Events . | . . . Feedback Blocked . | . . . Robot Schematics Acquired . | . . . Robots Built . | . . . Authchips . | . . . Time . | . . . Total Robot Build Rating . | . . . Part Schematics Acquired . | . . . Parts Built . | . . . Authchips . | . . . Time . | . . . Total Part Build Rating . | . . . Parts Repaired . | . . . Time . | . . . Parts Recycled . | . . . Recycled Matter . | . . . Retrieved Matter . | . . . Retrieved Components . | . . . Parts Scanalyzed . | . . . Part Schematics Acquired . | . . . Parts Damaged . | . . . Bothacking | -11 -10 -10 ------------ Run | Yrd Mat Min Used RIF Installer . | . . . Robots Hacked . | . . . Non-combat . | . . . Combat . | . . . Robot Hacks Applied . | . . . Relay Couplers Released . | . . . Fabnet Peak Effective % . | . . . Robots Rewired . | . . . Allies Hacked . | . . . Hacks Repelled . | . . . Allies | -11 -10 -10 -------- Run | Yrd Mat Min Total Allies . | . . . Largest Group . | . . . Highest-Rated Group . | . . . Highest-Rated Ally . | . . . Total Orders . | . . . Ally Attacks . | . . . Total Damage . | . . . Kills . | . . . Allies Corrupted . | . . . Allies Melted . | . . . Intel | -11 -10 -10 ------- Run | Yrd Mat Min Robot Analysis Total . | . . . Derelict Logs Recovered . | . . . Drone Launches . | . . . Drone Recoveries . | . . . Exploration | -11 -10 -10 ------------- Run | Yrd Mat Min Turns Passed 539 | 64 342 133 Spaces Moved 300 | 47 166 87 Core 21 | 20 . 1 Treads . | . . . Legs 279 | 27 166 86 Wheels . | . . . Hover . | . . . Flight . | . . . Fastest Speed 50 | 50 120 120 Average Speed 119 | 110 120 123 Slowest Speed 250 | 250 120 200 Overloaded Moves . | . . . Propulsion Burnouts . | . . . Robots Hopped . | . . . Cave-ins Triggered . | . . . Exploration Rate (%) 20 | 4 33 24 Regions Visited 2 Branch Regions 1 Pre-discovered Areas . | . . . Known Exits Taken . | . . . Unknown Exits Taken 2 | 1 1 . Scrap Searched . | . . . Spaces Dug . | . . . Terrain Destroyed . | . . . Melee . | . . . Projectile . | . . . AOE . | . . . Terrain Rammed . | . . . Walls Destroyed . | . . . Machines Disabled . | . . . Actions | -11 -10 -10 --------- Run | Yrd Mat Min Total 410 | 56 252 102 Wait 27 | . 27 . Move 298 | 46 165 87 Hop . | . . . Pick Up 15 | 4 9 2 Fast Attach 7 | 6 1 . Attach 1 | . 1 . Detach . | . . . Swap 10 | . 7 3 Drop 13 | . 10 3 Fire 39 | . 32 7 Melee . | . . . Ram . | . . . Kick . | . . . Crush . | . . . Escape Stasis . | . . . Rewire . | . . . Trap . | . . . Miscellaneous . | . . . Route ------- -11/Scrapyard -10/Materials (discovered 2 exits: [*Mat] / [*Min]) -10/Mines History --------- Turn | Location | Event 5 | -11/Scrapyard | Discovered new exit (range 15) 65 | -11/Scrapyard | Entered Materials 107 | -10/Materials | Central database locked down 255 | -10/Materials | Discovered new exit (range 16) 305 | -10/Materials | Build established: Mutant 390 | -10/Materials | Discovered new exit (range 13) 407 | -10/Materials | Entered Mines 408 | -10/Mines | Assembled infested the area 521 | -10/Mines | Core integrity fell below 50% 529 | -10/Mines | Core integrity fell below 20% 540 | -10/Mines | Destroyed by D-53 Grenadier with Mini Grenade Launcher Last Messages --------------- 00435_ K-01 Serf collects debris. 00438_ Acquired Particle Gun. 00438_ K-01 Serf collects debris. 00441_ Dropped Lgt. Ion Engine. 00442_ K-01 Serf collects debris. 00444_ Dropped Aluminum Leg. 00445_ Acquired 33 matter. 00446_ K-01 Serf collects debris. 00446_ T-07 Excavator is excavating. 00461_ Dropped Imp. Heat Sink. 00463_ T-07 Excavator is excavating. 00465_ Acquired Imp. Heat Sink. 00485_ K-01 Serf collects debris. 00514_ R-06 Scavenger destroyed. 00515_ The unstable cave ceiling collapses. 00526_ Assault Rifle destroyed. 00533_ Aluminum Leg destroyed. 00536_ The unstable cave ceiling collapses. 00537_ Particle Gun destroyed. 00538_ Aluminum Leg destroyed. Map ----- +----------------------------------------------------+ | ?????????????????????????????????????????????????? | | ?????????????????????????????????????????????????? | | ?????????????????????????????????????????????????? | | ?????????????????????????????????????????????????? | | ?????????????????????????????????????????????????? | | ?????????????????????????????????????????????????? | | ?????????????????????????????????????????????????? | | ?????????????????????????????????????????????????? | | ?????????????????????????????????????????????????? | | ?????????????????????????????????????????????????? | | ???????????????????????? ??????????????????????? | | ???????????????????????? ??????????????????????? | | ???????????????????????? ??????????????????????? | | ???????????????????????? ??????????????????????? | | ???????????????????????? ??????????????????????? | | ???????????????????????? ??????????????????????? | | ???????????????????????? ??????????????????????? | | ???????????????????????? ??????????????????????? | | ???????????????????????? g ??????????????????????? | | ???????????????????????? #??????????????????????? | | ????????????????????????# #??????????????????????? | | ????????????????????????# #??????????????????????? | | ??????????????????????### ####???????????????????? | | ?????????????????????## #???????????????????? | | ?????????????????????# #???????????????????? | | ????????????????????## @ #???????????????????? | | ???????????????????## #?????#?????????????? | | ????????????????? ?# #???? #?????????????? | | ????????????????? ?# #??? ??????????????? | | ????????????????? ?## ### #???????????????? | | ##??????????????? ?# ## ????????????????? | | #??????????????? ## # #?????????????????? | | #??????????????? # k#?????????????????? | | #??#######?????# ## #?????????????????? | | #### ##????# d #?????????????????? | | [ #????# # d #?????????????????? | | * #????# ## # #?????????????????? | | #### =!# #????# ### #?????????????????? | | ##??## ## #??### # #?????????????????? | | ?????# ## #### ##?????????????????? | | ?????# ## !% ##??????????????????? | | ?????# ## * #???????????????????? | | ?????# ######## ##???????????????????? | | ????# #?????# ## ##????????????????????? | | ????# #?????## # #?????????????????????? | | ?????####?????## #?????????????????????? | | ?????????????## ## #????????????????????? | | ?????????????# ###### #????????????????????? | | ????????????## ##?????# #???????????????????? | | ???????????## ##??????# #??????????????????? | +----------------------------------------------------+ Best States ------------- Heat Dissipation 39 Energy Generation 10 Energy Capacity 250 Matter Stores 396 Matter Capacity 500 Sight Range 16 Terrain Scan Density 10 Evasion (%) 55 Item Schematics ----------------- None Robot Schematics ------------------ None Fabricated ------------ Nothing Alien Tech Used ----------------- None Achievements -------------- None Challenges ------------ None Game ------ Seed CooledFlakRedistributor Manual? 0 Play Time 00:05:44 Cumulative 62.6 hours Start 2024.05.01 @ 15:26:41 End 2024.05.01 @ 15:31:24 Sessions 1 Manual Loads 0 Difficulty Rogue Special Mode None Game No. 104 Rogue 86 Adventurer 18 Explorer 0 Win Type - Total 0 Types 0/0/0/0/0/0/0/0/0 Lore% 22 Gallery% 37 Achievement% 29 Wizard Run 0 Options --------- Layout 1 ASCII 0 Keyboard 0 Movement Mouse Keybinds 0 Fullscreen 2 Font 24/Smallcaps Map View 50x35 Zoom Use 0% Tactical HUD 1 Map Filters NONE Filters NONE Steam 1 RUN: d55d5064-f3f1-4a3a-8136-64c4da612ab1